bitfinex/quotes_SOLUSD_20240626
["timestamp","ask_amount","ask_price","bid_price","bid_amount"]
[1719416652693,7.3232,136.56,136.51,29.042]
[1719416652891,7.3232,136.56,136.51,29.0422]
[1719416653208,7.3219,136.58,136.51,21.717]
[1719416653896,7.3219,136.58,136.54,7.3235]
[1719416654095,7.3219,136.58,136.53,7.3242]
[1719416654404,7.3213,136.59,136.55,7.3232]
[1719416654583,7.3213,136.59,136.54,25.633]
[1719416654787,39.99070429,136.62,136.54,25.633]
[1719416655005,7.3218,136.58,136.54,18.3094]
[1719416655183,34.9194,136.62,136.54,25.633]
[1719416655383,25.07130429,136.61,136.54,25.633]
[1719416655582,7.3207,136.6,136.54,18.3094]
[1719416655811,20.0,136.61,136.57,7.3221]
[1719416655988,7.3191,136.63,136.58,18.3036]
[1719416656183,7.3191,136.63,136.58,25.6251]
[1719416656623,7.3195,136.62,136.58,25.6251]
[1719416656909,7.3201,136.61,136.57,7.322]
[1719416657109,7.3196,136.62,136.58,7.3215]
[1719416657510,7.3192,136.63,136.58,7.3215]
[1719416657708,24.21232479,136.64,136.55,6.206]
[1719416657887,24.21232479,136.64,136.54,18.3087]
[1719416657888,7.3215,136.59,136.54,25.6322]
[1719416658514,7.3207,136.6,136.55,7.3232]
[1719416658898,38.2993,136.62,136.55,7.3232]
[1719416659097,38.2993,136.62,136.54,18.3087]
[1719416659098,7.3192,136.63,136.56,22.881]
[1719416659307,28.1627205,136.64,136.57,0.17]
[1719416659606,20.8441205,136.64,136.6,7.3205]
[1719416659795,0.8441205,136.64,136.61,7.3197]
[1719416660209,0.8441205,136.64,136.62,7.3195]
[1719416660587,0.8441205,136.64,136.61,7.3199]
[1719416660793,0.8441205,136.64,136.6,25.622]
[1719416660994,0.8441205,136.64,136.61,7.3199]
[1719416661409,0.8441205,136.64,136.62,7.3195]
[1719416661710,0.8441205,136.64,136.63,7.319]
[1719416662193,0.8441205,136.64,136.63,7.489]
[1719416662397,0.8441205,136.64,136.63,7.319]
[1719416662620,0.8441205,136.64,136.62,18.2988]
[1719416662799,0.8441205,136.64,136.59,18.3027]
[1719416663112,0.8441205,136.64,136.59,7.3207]
[1719416663315,7.3193,136.63,136.58,25.6255]
[1719416663608,7.32,136.62,136.58,25.6255]
[1719416663915,8.1630205,136.64,136.58,18.304]
[1719416664104,20.0,136.63,136.6,7.3205]
[1719416664709,0.8441205,136.64,136.58,18.304]
[1719416664894,0.8441205,136.64,136.61,7.3197]
[1719416665098,0.8441205,136.64,136.6,25.6219]
[1719416665414,8.1627205,136.64,136.6,25.6219]
[1719416665711,8.1627205,136.64,136.6,18.3014]
[1719416666217,7.3201,136.61,136.57,18.3047]
[1719416666400,7.3197,136.62,136.57,25.6265]
[1719416666594,15.7429,136.62,136.52,6.0301]
[1719416666793,20.0,136.61,136.52,6.0301]
[1719416667109,38.3008,136.61,136.54,7.3236]
[1719416667311,7.322,136.58,136.54,7.3237]
[1719416667516,7.3213,136.59,136.54,7.3237]
[1719416667695,7.3217,136.58,136.53,25.6346]
[1719416667896,7.3211,136.6,136.54,7.3238]
[1719416668210,27.3215,136.59,136.54,7.3238]
[1719416668517,7.3206,136.6,136.55,7.3232]
[1719416668694,20.0,136.59,136.55,7.3232]
[1719416669092,27.3212,136.59,136.53,18.3104]
[1719416669402,27.3212,136.59,136.54,7.3236]
[1719416669806,7.3202,136.61,136.55,18.307]
[1719416670018,20.0,136.6,136.56,7.3227]
[1719416670221,27.3207,136.6,136.55,25.6302]
[1719416670418,27.3207,136.6,136.56,7.3227]
[1719416670715,20.0,136.6,136.56,7.3227]
[1719416671125,27.3208,136.6,136.55,25.6301]
[1719416671424,7.3213,136.59,136.55,18.307]
[1719416671617,27.3208,136.6,136.55,25.6302]
[1719416671997,20.0,136.6,136.55,18.307]
[1719416672202,23.0628,136.62,136.57,18.3053]
[1719416672821,23.0628,136.62,136.57,25.6273]
[1719416673222,7.3199,136.62,136.57,25.6273]
[1719416673426,7.3223,136.57,136.53,7.3243]
[1719416673720,7.3223,136.57,136.52,13.3548]
[1719416673935,7.3215,136.59,136.53,18.3107]
[1719416674109,7.3218,136.58,136.53,18.3107]
[1719416674423,4.99910421,136.61,136.53,25.6347]
[1719416674622,7.3224,136.57,136.53,18.3107]
[1719416674810,24.99910421,136.61,136.53,18.3107]
[1719416674811,4.99910421,136.61,136.53,18.3107]
[1719416675005,24.99910421,136.61,136.53,18.3107]
[1719416675205,7.3217,136.58,136.53,25.6349]
[1719416675405,31.04200421,136.61,136.52,13.3549]
[1719416675621,7.3227,136.56,136.52,13.3549]
[1719416675806,7.3227,136.56,136.51,7.3252]
[1719416676002,7.3222,136.57,136.52,7.3248]
[1719416676528,7.3227,136.56,136.52,7.3248]
[1719416677327,18.3053,136.58,136.49,6.6572]
[1719416677527,20.0,136.55,136.49,6.6572]
[1719416677713,27.3238,136.55,136.5,7.3256]
[1719416677917,20.0,136.55,136.52,7.3248]
[1719416678118,20.0,136.55,136.5,7.3255]
[1719416678503,7.3221,136.58,136.51,18.3132]
[1719416678704,16.0405,136.59,136.51,18.3132]
[1719416678921,20.0,136.58,136.53,7.324]
[1719416679409,20.0,136.58,136.54,7.3237]
[1719416679820,27.3219,136.58,136.53,25.6348]
[1719416680214,27.3219,136.58,136.54,7.3237]
[1719416680729,27.3219,136.58,136.53,25.6348]
[1719416680912,27.3219,136.58,136.54,7.3237]
[1719416681115,27.3219,136.58,136.53,25.6348]
[1719416681412,7.3224,136.57,136.53,25.6348]
[1719416681820,7.3224,136.57,136.53,18.3106]
[1719416683120,20.0,136.58,136.51,7.3251]
[1719416683121,7.3229,136.56,136.51,7.3251]
[1719416683329,7.3229,136.56,136.5,18.3139]
[1719416683637,7.3222,136.57,136.52,25.6371]
[1719416683807,7.3222,136.57,136.53,7.3241]
[1719416685112,7.3222,136.57,136.52,25.6369]
[1719416685332,20.0,136.58,136.53,7.324]
[1719416686335,27.3218,136.58,136.53,7.324]
[1719416686713,27.3218,136.58,136.54,7.3237]
[1719416686914,16.0405,136.59,136.52,18.3122]
[1719416687222,23.362,136.59,136.54,7.3235]
[1719416687626,7.3217,136.58,136.54,7.3235]
[1719416688007,23.3619,136.59,136.54,7.3235]
[1719416689035,7.3217,136.58,136.54,7.3235]
[1719416689210,7.3217,136.58,136.53,7.4941]
[1719416689839,7.3217,136.58,136.54,7.3236]
[1719416690139,7.3214,136.59,136.54,7.3236]
[1719416690318,7.3217,136.58,136.54,7.3236]
[1719416690518,7.3222,136.57,136.53,7.4941]
[1719416690729,7.3222,136.57,136.53,7.3241]
[1719416690926,7.3222,136.57,136.52,25.6369]
[1719416691130,7.3222,136.57,136.53,7.3242]
[1719416692242,7.3219,136.58,136.53,7.3242]
[1719416692936,7.3219,136.58,136.54,7.3237]
[1719416693134,7.3214,136.59,136.55,7.3232]
[1719416693837,7.3204,136.61,136.56,18.3068]
[1719416694230,7.3207,136.6,136.56,25.6294]
[1719416695429,15.4085,136.62,136.57,7.3221]
[1719416696353,7.3203,136.61,136.57,7.3221]
[1719416697351,7.3203,136.61,136.56,25.6293]
[1719416697530,7.3206,136.6,136.56,25.6293]
[1719416698148,7.3203,136.61,136.56,25.6293]
[1719416698341,7.3207,136.6,136.56,25.6293]
[1719416698844,15.4085,136.62,136.56,25.6293]
[1719416699047,7.3209,136.6,136.56,18.3068]
[1719416699347,7.3203,136.61,136.56,25.6295]
[1719416699750,7.3203,136.61,136.57,7.3222]
[1719416699940,7.321,136.6,136.56,25.6295]
[1719416700328,7.321,136.6,136.56,18.3068]
[1719416700525,7.3212,136.59,136.54,25.6331]
[1719416700856,22.7283,136.62,136.57,7.3222]
[1719416701025,22.7283,136.62,136.58,7.3217]
[1719416701226,22.7283,136.62,136.56,18.3057]
[1719416701227,22.7283,136.62,136.57,7.322]
[1719416701449,7.3201,136.61,136.56,25.6282]
[1719416701641,7.3211,136.59,136.55,7.3232]
[1719416702539,7.3207,136.6,136.55,18.308]
[1719416702842,7.3212,136.59,136.55,25.631]
[1719416703032,7.3219,136.58,136.53,7.3239]
[1719416703236,7.3219,136.58,136.52,18.3111]
[1719416703237,7.3221,136.58,136.52,18.3111]
[1719416703559,7.322,136.58,136.53,7.3239]
[1719416703845,15.4085,136.62,136.51,36.6253]
[1719416704056,15.4085,136.62,136.56,18.3065]
[1719416704256,22.728,136.62,136.58,7.3213]
[1719416704750,7.3203,136.61,136.56,25.6291]
[1719416704941,7.3208,136.6,136.56,18.3065]
[1719416705137,33.7077,136.62,136.54,18.3095]
[1719416705458,7.3226,136.57,136.52,25.6368]
[1719416705679,7.3218,136.58,136.53,7.3242]
[1719416706161,7.3212,136.59,136.54,18.3094]
[1719416706355,7.3208,136.6,136.56,7.3225]
[1719416706658,7.3208,136.6,136.55,7.3231]
[1719416706841,7.3208,136.6,136.51,36.6263]
[1719416706842,22.7285,136.62,136.56,18.3064]
[1719416707160,5.75430833,136.65,136.57,0.17]
[1719416707450,34.4647,136.66,136.58,18.3039]
[1719416707630,7.3198,136.62,136.58,18.3039]
[1719416708046,7.3198,136.62,136.58,25.6253]
[1719416708571,7.3198,136.62,136.58,18.3039]
[1719416708865,7.3198,136.62,136.58,25.6254]
[1719416709371,7.3198,136.62,136.58,18.3039]
[1719416710170,7.3198,136.62,136.58,25.6255]
[1719416710863,7.3202,136.61,136.57,0.17]
[1719416711166,7.3204,136.61,136.56,7.3224]
[1719416711336,7.3209,136.6,136.56,7.3224]
[1719416711542,7.3209,136.6,136.55,25.6304]
[1719416711740,7.3202,136.61,136.55,18.3074]
[1719416711942,7.3196,136.62,136.58,7.3213]
[1719416712361,7.3201,136.61,136.57,25.6274]
[1719416712564,7.3201,136.61,136.57,18.3054]
[1719416712753,7.3196,136.62,136.57,25.6275]
[1719416712957,7.3196,136.62,136.57,18.3054]
[1719416713176,7.3201,136.61,136.57,25.6274]
[1719416713672,7.3201,136.61,136.57,25.6273]
[1719416713844,7.3191,136.63,136.58,7.3212]
[1719416715568,0.8441205,136.64,136.57,25.6274]
[1719416715748,7.3203,136.61,136.57,25.6274]
[1719416716343,7.3197,136.62,136.57,25.6274]
[1719416717744,7.3202,136.61,136.57,25.6274]
[1719416718656,7.3196,136.62,136.58,7.3216]
[1719416719062,7.3192,136.63,136.58,7.3216]
[1719416719570,7.3197,136.62,136.58,7.3216]
[1719416719746,8.1627205,136.64,136.59,25.7939]
[1719416719947,0.8441205,136.64,136.6,7.4903]
[1719416720264,0.8441205,136.64,136.6,0.17]
[1719416720466,7.3193,136.63,136.6,0.17]
[1719416720785,7.3193,136.63,136.59,18.4728]
[1719416721268,7.3196,136.62,136.56,34.6383]
[1719416721649,7.3196,136.62,136.57,0.17]
[1719416722047,7.3196,136.62,136.57,7.4917]
[1719416722368,19.1410205,136.64,136.57,0.17]
[1719416722575,7.3207,136.6,136.57,0.17]
[1719416722768,7.3198,136.62,136.57,7.4921]
[1719416722950,7.3191,136.63,136.58,25.6257]
[1719416723145,0.8441205,136.64,136.59,7.4907]
[1719416723472,7.3191,136.63,136.59,7.4911]
[1719416723674,7.3191,136.63,136.59,7.3211]
[1719416724053,8.1627205,136.64,136.6,7.3205]
[1719416725246,0.8441205,136.64,136.59,0.17]
[1719416725451,0.8441205,136.64,136.58,18.3042]
[1719416725676,7.3196,136.62,136.58,18.3042]
[1719416725880,7.3209,136.6,136.57,0.34]
[1719416726057,7.3202,136.61,136.58,0.17]
[1719416726573,7.3196,136.62,136.58,7.4916]
[1719416726956,7.3196,136.62,136.58,0.17]
[1719416727156,7.3201,136.61,136.58,0.17]
[1719416727351,7.3196,136.62,136.58,7.4916]
[1719416727752,7.3192,136.63,136.58,7.4916]
[1719416727964,7.3196,136.62,136.58,7.4916]
[1719416728377,7.3192,136.63,136.58,7.4916]
[1719416728968,7.3197,136.62,136.58,7.4916]
[1719416730075,7.3201,136.61,136.58,0.17]
[1719416730256,7.3198,136.62,136.58,7.4916]
[1719416732086,18.2982,136.63,136.55,6.0552]
[1719416732377,7.3208,136.6,136.56,7.3224]
[1719416732959,7.3203,136.61,136.55,24.3622]
[1719416733175,7.3203,136.61,136.57,7.3221]
[1719416733478,7.3211,136.59,136.55,31.6853]
[1719416733690,7.3208,136.6,136.56,7.3226]
[1719416734479,0.8441205,136.64,136.57,18.3053]
[1719416734773,27.06,136.61,136.58,7.4912]
[1719416734976,27.06,136.61,136.59,7.321]
[1719416735357,8.1627205,136.64,136.59,18.3026]
[1719416735561,8.1627205,136.64,136.6,7.4906]
[1719416735774,0.8441205,136.64,136.6,18.4703]
[1719416736165,0.8441205,136.64,136.62,7.3195]
[1719416736364,0.8441205,136.64,136.6,18.3003]
[1719416736578,8.1626205,136.64,136.6,25.6206]
[1719416736780,0.8441205,136.64,136.6,25.6206]
[1719416737275,0.8441205,136.64,136.61,7.3199]
[1719416737481,27.06,136.62,136.61,7.3199]
[1719416737669,0.8441205,136.64,136.6,25.6207]
[1719416737870,0.8441205,136.64,136.61,0.17]
[1719416738057,27.06,136.62,136.61,7.49]
[1719416738965,0.8441205,136.64,136.62,25.6178]
[1719416739172,27.06,136.63,136.62,25.6178]
[1719416739763,0.8441205,136.64,136.62,25.7878]
[1719416740069,0.8441205,136.64,136.63,7.319]
[1719416740657,0.8441205,136.64,136.62,25.958]
[1719416741086,27.9041205,136.64,136.63,7.319]
[1719416741581,0.8441205,136.64,136.63,7.489]
[1719416741780,0.8441205,136.64,136.63,7.659]
[1719416742695,0.8441205,136.64,136.62,18.2987]
[1719416742995,0.8441205,136.64,136.63,7.319]
[1719416743198,2.97718694,136.69,136.68,7.3163]
[1719416743481,16.1961,136.75,136.68,7.3163]
[1719416743482,7.3138,136.73,136.68,7.3163]
[1719416743866,7.3138,136.73,136.69,7.3156]
[1719416744062,27.06,136.7,136.69,7.3156]
[1719416744363,27.06,136.7,136.68,7.3161]
[1719416744561,7.3133,136.74,136.69,7.3158]
[1719416744760,2.97718694,136.75,136.69,0.17]
[1719416744964,7.3139,136.73,136.69,0.17]
[1719416745205,10.29018694,136.75,136.7,7.3151]
[1719416745365,7.314,136.73,136.69,25.6047]
[1719416745564,7.314,136.73,136.69,18.289]
[1719416745760,7.314,136.73,136.69,25.6047]
[1719416746565,2.97718694,136.75,136.7,7.3151]
[1719416746765,7.3132,136.74,136.69,25.6046]
[1719416746973,7.3138,136.73,136.69,25.6046]
[1719416747562,7.3133,136.74,136.69,25.6046]
[1719416747771,7.3133,136.74,136.7,7.3149]
[1719416748266,7.3124,136.76,136.71,25.7711]
[1719416748590,7.3124,136.76,136.72,7.3141]
[1719416748991,7.3124,136.76,136.71,25.7711]
[1719416749181,7.3126,136.75,136.71,25.7711]
[1719416750074,0.8441205,136.78,136.73,18.2833]
[1719416750308,0.8441205,136.78,136.74,0.17]
[1719416751108,0.8441205,136.78,136.75,21.6069]
[1719416751402,0.8441205,136.78,136.75,47.2005]
[1719416752309,0.8441205,136.78,136.76,7.3117]
[1719416752599,0.8441205,136.78,136.75,47.2007]
[1719416752984,0.8441205,136.78,136.72,0.17]
[1719416752985,0.8441205,136.78,136.72,41.6386]
[1719416753177,0.8441205,136.78,136.74,18.2828]
[1719416753580,0.8441205,136.78,136.73,7.3135]
[1719416753990,0.8441205,136.78,136.74,7.3126]
[1719416754397,0.8441205,136.78,136.73,18.2841]
[1719416754587,0.8441205,136.78,136.74,7.3127]
[1719416755211,8.1552205,136.78,136.74,7.3127]
[1719416755671,0.8441205,136.78,136.75,7.3126]
[1719416755875,0.8441205,136.78,136.73,25.7674]
[1719416756072,8.1553205,136.78,136.74,0.17]
[1719416756507,0.8441205,136.78,136.75,7.3124]
[1719416756710,8.1553205,136.78,136.74,7.483]
[1719416757013,0.8441205,136.78,136.74,0.17]
[1719416757315,7.3116,136.77,136.74,0.17]
[1719416757700,8.1553205,136.78,136.74,0.17]
[1719416757890,8.1553205,136.78,136.74,7.483]
[1719416758219,7.3138,136.73,136.68,29.4696]
[1719416758549,0.8441205,136.78,136.62,58.6473]
[1719416758550,15.0632,136.74,136.64,6.1493]
[1719416758684,7.3159,136.69,136.64,13.4676]
[1719416759001,7.3159,136.69,136.65,8.77887325]
[1719416759319,7.3159,136.69,136.65,7.3179]
[1719416759495,7.3152,136.71,136.66,7.3172]
[1719416759695,7.3152,136.71,136.67,7.3167]
[1719416760016,7.3152,136.71,136.66,7.3173]
[1719416760317,7.3144,136.72,136.67,7.3166]
[1719416760520,7.3148,136.71,136.67,7.3166]
[1719416760690,7.3148,136.71,136.66,7.3172]
[1719416761085,7.3154,136.7,136.66,7.3172]
[1719416761326,7.3154,136.7,136.65,25.6121]
[1719416761620,7.3154,136.7,136.66,7.3172]
[1719416762324,7.3154,136.7,136.65,25.612]
[1719416762521,7.3148,136.71,136.66,7.3172]
[1719416762826,33.3461,136.74,136.65,18.2942]
[1719416762827,7.3162,136.69,136.65,18.2942]
[1719416763315,7.3164,136.68,136.64,7.3182]
[1719416763530,15.5994,136.69,136.6,7.64082732]
[1719416763812,7.3185,136.64,136.6,7.3202]
[1719416764017,7.3179,136.66,136.61,7.32]
[1719416764223,22.0716,136.69,136.59,15.8473]
[1719416764424,7.3188,136.64,136.59,7.321]
[1719416764629,7.3188,136.64,136.58,18.3033]
[1719416764801,2.97718694,136.68,136.58,36.6064]
[1719416765201,7.318,136.65,136.62,18.2984]
[1719416765508,7.318,136.65,136.58,36.6064]
[1719416765509,7.318,136.65,136.61,7.32]
[1719416765705,7.3172,136.67,136.62,7.3195]
[1719416766027,2.97718694,136.68,136.62,7.3195]
[1719416766028,7.3176,136.66,136.62,7.3195]
[1719416766234,7.3176,136.66,136.61,18.2999]
[1719416766235,7.3176,136.66,136.61,25.6197]
[1719416766528,7.3186,136.64,136.6,7.3204]
[1719416766704,7.3186,136.64,136.58,18.3029]
[1719416766705,18.2927,136.67,136.58,18.3029]
[1719416766902,7.3187,136.64,136.59,7.3208]
[1719416767104,7.318,136.65,136.61,7.32]
[1719416767321,2.97718694,136.67,136.62,7.3195]
[1719416767322,7.3175,136.66,136.62,7.3195]
[1719416767695,10.29418694,136.67,136.63,7.3188]
[1719416767896,10.29418694,136.67,136.62,18.2987]
[1719416768212,2.97718694,136.67,136.62,18.2987]
[1719416768428,7.3178,136.66,136.62,18.2987]
[1719416768828,7.318,136.65,136.62,18.2987]
[1719416769125,7.3194,136.63,136.59,18.3016]
[1719416769630,7.3187,136.64,136.59,25.6226]
[1719416770007,7.3187,136.64,136.6,7.3205]
[1719416770205,7.3187,136.64,136.59,18.3016]
[1719416770408,7.3187,136.64,136.59,25.6224]
[1719416770606,7.3187,136.64,136.6,7.3205]
[1719416770914,7.3181,136.65,136.6,7.3205]
[1719416771114,7.3176,136.66,136.61,18.4701]
[1719416771414,10.29408694,136.67,136.63,7.319]
[1719416771923,7.3174,136.66,136.62,7.3195]
[1719416773125,7.3174,136.66,136.61,25.79]
[1719416773333,7.3174,136.66,136.62,7.3194]
[1719416773759,2.97718694,136.67,136.61,25.6201]
[1719416773921,10.29418694,136.67,136.63,7.3188]
[1719416774108,7.317,136.67,136.63,7.3188]
[1719416774309,7.3165,136.68,136.64,7.3182]
[1719416774531,7.3171,136.67,136.62,18.2976]
[1719416774735,7.3171,136.67,136.63,8.78028416]
[1719416774912,22.0716,136.69,136.62,18.4676]
[1719416775115,7.3172,136.67,136.63,7.4888]
[1719416775446,7.3172,136.67,136.63,0.17]
[1719416775647,7.3172,136.67,136.62,25.617]
[1719416775931,7.3165,136.68,136.63,7.3189]
[1719416776719,22.9157,136.69,136.64,18.2957]
[1719416777833,33.889,136.69,136.61,35.0881]
[1719416778039,7.3177,136.66,136.62,7.3194]
[1719416778208,7.3185,136.64,136.58,34.011]
[1719416778415,7.3185,136.64,136.6,7.3206]
[1719416779529,21.26958694,136.67,136.61,7.32]
[1719416779530,7.3181,136.65,136.61,7.32]
[1719416780140,7.3175,136.66,136.62,7.3195]
[1719416780346,7.317,136.67,136.63,7.319]
[1719416780721,15.5994,136.69,136.62,18.2986]
[1719416780722,7.3174,136.66,136.62,18.2986]
[1719416780916,7.3182,136.65,136.6,7.3204]
[1719416781127,7.3186,136.64,136.6,7.3204]
[1719416781617,7.3181,136.65,136.6,7.3204]
[1719416781919,6.4572,136.65,136.56,18.3063]
[1719416782133,7.3198,136.62,136.56,18.3063]
[1719416782834,7.3198,136.62,136.58,7.3214]
[1719416783034,7.3192,136.63,136.58,7.3214]
[1719416783209,7.3192,136.63,136.59,7.3211]
[1719416783414,16.75248694,136.65,136.6,7.3205]
[1719416783617,9.43438694,136.65,136.6,7.3205]
[1719416784049,16.75248694,136.65,136.61,7.32]
[1719416784745,9.43438694,136.65,136.59,18.3016]
[1719416784917,7.3193,136.63,136.59,25.6226]
[1719416785440,7.3197,136.62,136.57,18.3055]
[1719416785649,7.3205,136.61,136.57,18.3055]
[1719416785947,7.3202,136.61,136.55,36.6146]
[1719416786121,34.9028,136.64,136.56,18.3067]
[1719416786516,7.3207,136.6,136.56,25.6292]
[1719416787751,7.3203,136.61,136.56,25.6292]
[1719416788731,7.3203,136.61,136.57,7.3221]
[1719416788923,7.3198,136.62,136.57,7.3221]
[1719416789127,7.3198,136.62,136.58,7.3216]
[1719416789540,7.3202,136.61,136.57,7.322]
[1719416789747,7.3206,136.6,136.56,25.6293]
[1719416790752,7.3203,136.61,136.57,7.322]
[1719416792246,7.3203,136.61,136.56,25.6292]
[1719416792455,7.3208,136.6,136.56,25.6292]
[1719416794534,7.3202,136.61,136.57,7.3222]
[1719416795661,7.3207,136.6,136.56,25.6292]
[1719416797265,7.3192,136.63,136.59,7.3211]
[1719416797832,26.90098694,136.64,136.6,7.3205]
[1719416797966,16.6053,136.64,136.55,0.17]
[1719416798145,23.9238,136.64,136.6,25.6207]
[1719416799070,23.9238,136.64,136.6,18.3003]
[1719416799460,23.9238,136.64,136.6,25.6209]
[1719416799964,5.98420412,136.66,136.6,18.3003]
[1719416800147,13.30190412,136.66,136.62,7.3193]
[1719416800959,7.3179,136.65,136.61,8.24132602]
[1719416802870,7.3185,136.64,136.61,0.92142602]
[1719416803078,7.3185,136.64,136.6,25.6207]
[1719416805383,7.318,136.65,136.61,7.3197]
[1719416805750,5.98420412,136.66,136.62,7.3192]
[1719416806086,27.58990412,136.69,136.61,7.4899]
[1719416806252,7.318,136.65,136.61,7.4899]
[1719416806670,7.318,136.65,136.61,7.3199]
[1719416808283,27.58990412,136.69,136.6,18.3003]
[1719416808467,36.5698,136.73,136.64,15.331]
[1719416808468,16.6371,136.73,136.64,15.331]
[1719416808658,7.3143,136.72,136.67,25.6085]
[1719416808862,23.951,136.73,136.67,18.2919]
[1719416809183,27.02,136.71,136.68,7.3161]
[1719416809652,7.3143,136.72,136.68,7.3161]
[1719416809965,23.951,136.73,136.68,7.3161]
[1719416810170,7.3142,136.72,136.67,18.2919]
[1719416810756,16.6371,136.73,136.66,7.317]
[1719416811146,7.3149,136.71,136.67,7.3167]
[1719416811360,7.3149,136.71,136.66,7.3172]
[1719416811759,7.3149,136.71,136.67,7.3168]
[1719416812470,7.3133,136.74,136.7,7.3151]
[1719416812683,7.3133,136.74,136.69,32.2156]
[1719416812967,7.3133,136.74,136.7,7.3152]
[1719416813752,18.2799,136.77,136.69,32.2158]
[1719416813753,7.3137,136.73,136.69,32.2158]
[1719416813952,7.3137,136.73,136.69,25.6046]
[1719416815976,7.3127,136.75,136.69,18.2889]
[1719416816577,7.3132,136.74,136.7,7.3149]
[1719416816957,7.3125,136.76,136.71,7.3145]
[1719416817158,7.3127,136.75,136.7,7.3151]
[1719416817360,7.3131,136.74,136.7,7.3151]
[1719416818767,7.3128,136.75,136.7,7.3151]
[1719416819962,7.3131,136.74,136.7,7.3151]
[1719416820161,7.3132,136.74,136.7,7.3151]
[1719416820572,7.3128,136.75,136.71,7.3144]
[1719416821276,0.8441205,136.78,136.71,18.2864]
[1719416821478,7.3121,136.76,136.72,7.3138]
[1719416822282,7.3121,136.76,136.71,18.2864]
[1719416822283,7.3121,136.76,136.71,25.6009]
[1719416822471,7.3121,136.76,136.72,7.3141]
[1719416822670,7.3132,136.74,136.7,7.315]
[1719416823187,7.3139,136.73,136.69,7.3156]
[1719416823978,7.3133,136.74,136.7,7.3152]
[1719416824180,7.3127,136.75,136.71,7.3146]
[1719416824377,0.8441205,136.78,136.72,7.3141]
[1719416824378,7.3121,136.76,136.72,7.3141]
[1719416824770,7.3121,136.76,136.71,7.3145]
[1719416824989,7.3126,136.75,136.71,7.3145]
[1719416825187,7.3132,136.74,136.7,25.6029]
[1719416825686,7.3128,136.75,136.7,25.6029]
[1719416826067,7.3131,136.74,136.7,25.6029]
[1719416826669,7.3128,136.75,136.71,7.3147]
[1719416826887,7.3128,136.75,136.7,25.6028]
[1719416828084,0.8441205,136.78,136.7,18.2878]
[1719416828085,7.3121,136.76,136.7,18.2878]
[1719416828272,7.313,136.75,136.7,34.1017]
[1719416828467,0.8441205,136.78,136.72,25.599]
[1719416828672,7.3121,136.76,136.72,25.599]
[1719416829572,7.3117,136.77,136.73,8.47274669]
[1719416829789,7.3122,136.76,136.72,25.5994]
[1719416830288,7.3116,136.77,136.73,7.3136]
[1719416830463,8.1552205,136.78,136.74,7.3129]
[1719416831283,8.1552205,136.78,136.75,7.3126]
[1719416831486,0.8441205,136.78,136.75,7.3126]
[1719416831779,0.8441205,136.78,136.74,18.2826]
[1719416832079,8.1551205,136.78,136.75,7.312]
[1719416832285,0.8441205,136.78,136.73,0.17]
[1719416832487,0.8441205,136.78,136.76,7.3118]
[1719416832687,0.8441205,136.78,136.72,36.9098]
[1719416832688,0.8441205,136.78,136.75,18.2807]
[1719416832890,0.8441205,136.78,136.72,0.34]
[1719416833093,0.8441205,136.78,136.71,6.3595]
[1719416833897,0.8441205,136.78,136.72,1.46239606]
[1719416834195,8.1554205,136.78,136.74,7.3127]
[1719416834706,0.8441205,136.78,136.75,18.2808]